bitfinex/quotes_SOLUSD_20250602
["timestamp","ask_amount","ask_price","bid_price","bid_amount"]
[1748884640427,3.75349511,152.8,152.76,23.3134507]
[1748884640606,3.75349511,152.79,152.76,23.3134507]
[1748884640826,34.0534507,152.81,152.77,22.91025724]
[1748884641038,3.75338021,152.8,152.77,22.91025724]
[1748884641208,3.75338021,152.79,152.77,22.91025724]
[1748884641409,34.0534507,152.81,152.77,22.91025724]
[1748884641714,3.75309482,152.8,152.78,26.0]
[1748884641933,3.75309482,152.79,152.78,49.3134507]
[1748884642135,10.74,152.81,152.78,49.3134507]
[1748884642807,10.74,152.81,152.79,29.85838165]
[1748884644010,28.23070128,152.82,152.81,26.0]
[1748884644330,28.23070128,152.82,152.81,49.3134507]
[1748884644530,10.72,152.85,152.81,49.3134507]
[1748884644720,3.74965498,152.84,152.83,6.54321795]
[1748884645532,10.72,152.85,152.83,6.54321795]
[1748884645735,34.0334507,152.85,152.83,6.54321795]
[1748884645924,23.3134507,152.84,152.82,26.0]
[1748884646806,23.3134507,152.84,152.83,6.54321795]
[1748884647535,34.0334507,152.85,152.83,6.54321795]
[1748884647963,23.3134507,152.84,152.82,26.0]
[1748884648134,23.3134507,152.83,152.8,32.54450261]
[1748884649118,23.3134507,152.81,152.8,26.0]
[1748884649322,23.3134507,152.82,152.8,32.54450261]
[1748884649919,23.3134507,152.83,152.8,32.54450261]
[1748884650632,27.05860439,152.84,152.8,32.54450261]
[1748884650937,23.3134507,152.83,152.8,32.54450261]
[1748884651318,23.3134507,152.84,152.8,32.54450261]
[1748884653024,23.3134507,152.83,152.8,32.54450261]
[1748884654547,23.3134507,152.81,152.77,29.85923848]
[1748884654719,23.3134507,152.81,152.78,26.0]
[1748884655251,23.3134507,152.82,152.79,6.54493095]
[1748884658028,23.3134507,152.84,152.79,46.22070902]
[1748884658543,3.7466716,152.83,152.79,46.22070902]
[1748884658731,23.3134507,152.83,152.79,46.22070902]
[1748884658927,23.3134507,152.83,152.79,22.90725832]
[1748884659342,23.3134507,152.82,152.79,22.90725832]
[1748884659936,23.3134507,152.82,152.79,6.54493095]
[1748884661038,23.3134507,152.81,152.79,6.54493095]
[1748884661850,34.0134507,152.82,152.79,6.54493095]
[1748884662148,23.3134507,152.81,152.78,32.54517044]
[1748884662343,23.3134507,152.8,152.78,32.54517044]
[1748884663031,23.3134507,152.81,152.78,32.54517044]
[1748884664253,34.0134507,152.82,152.78,32.54517044]
[1748884664455,3.75168189,152.81,152.78,48.90856879]
[1748884664746,34.0134507,152.82,152.78,48.90856879]
[1748884665052,3.75281647,152.81,152.78,48.90856879]
[1748884665254,34.0134507,152.82,152.78,48.90856879]
[1748884665439,3.7527964,152.81,152.78,48.90856879]
[1748884665751,34.0134507,152.82,152.78,48.90856879]
[1748884665957,3.75316859,152.81,152.78,72.22201949]
[1748884666250,34.0134507,152.82,152.78,72.22201949]
[1748884666449,3.75316859,152.81,152.78,72.22201949]
[1748884666650,34.0134507,152.82,152.78,48.90856879]
[1748884666855,27.06672391,152.81,152.78,48.90856879]
[1748884667058,34.0134507,152.82,152.78,48.90856879]
[1748884667241,3.75327287,152.81,152.78,48.90856879]
[1748884667433,34.0134507,152.82,152.78,48.90856879]
[1748884667631,3.75332523,152.81,152.78,48.90856879]
[1748884667832,34.0134507,152.83,152.78,72.22201949]
[1748884668033,3.75332455,152.82,152.79,23.3134507]
[1748884668236,3.75332455,152.81,152.79,23.3134507]
[1748884668439,34.0134507,152.83,152.79,23.3134507]
[1748884668653,3.75345428,152.82,152.79,23.3134507]
[1748884668841,3.75345428,152.81,152.79,23.3134507]
[1748884669044,34.0134507,152.83,152.79,23.3134507]
[1748884669235,3.7531726,152.82,152.81,26.0]
[1748884669864,3.7531726,152.82,152.81,55.85752504]
[1748884670046,15.39113201,152.87,152.81,72.21771089]
[1748884670231,3.75233212,152.86,152.85,26.0]
[1748884670560,10.7,152.87,152.85,49.3134507]
[1748884670738,10.7,152.87,152.86,26.0]
[1748884671839,10.7,152.87,152.86,32.54193379]
[1748884672163,10.7,152.87,152.85,26.0]
[1748884672164,37.76316652,152.87,152.85,26.0]
[1748884672456,27.06267509,152.86,152.83,6.54321795]
[1748884672752,23.3134507,152.85,152.82,32.5434708]
[1748884672983,23.3134507,152.84,152.83,26.0]
[1748884673130,23.3134507,152.84,152.82,32.5434708]
[1748884673131,27.06329746,152.84,152.82,32.5434708]
[1748884673333,23.3134507,152.84,152.82,32.5434708]
[1748884673557,23.3134507,152.83,152.81,6.54391376]
[1748884673760,23.3134507,152.82,152.77,23.3134507]
[1748884673937,23.3134507,152.81,152.8,26.0]
[1748884675046,23.3134507,152.81,152.8,32.54450261]
[1748884675671,23.3134507,152.82,152.8,32.54450261]
[1748884676255,25.29378761,152.86,152.8,32.54450261]
[1748884676256,23.3134507,152.83,152.8,32.54450261]
[1748884677073,23.3134507,152.82,152.8,32.54450261]
[1748884677374,4.82951561,152.86,152.8,32.54450261]
[1748884677551,23.3134507,152.83,152.8,32.54450261]
[1748884678872,23.3134507,152.82,152.8,32.54450261]
[1748884679052,23.3134507,152.81,152.8,32.54450261]
[1748884679670,23.3134507,152.82,152.8,32.54450261]
[1748884682691,10.7,152.83,152.8,32.54450261]
[1748884682692,34.0134507,152.83,152.8,32.54450261]
[1748884683582,10.7,152.83,152.81,23.3134507]
[1748884683786,28.00521825,152.86,152.8,48.90575915]
[1748884683787,34.0134507,152.87,152.83,26.0]
[1748884683968,10.7,152.87,152.83,49.3134507]
[1748884684282,10.7,152.87,152.84,23.3134507]
[1748884684982,23.3134507,152.86,152.83,26.0]
[1748884685160,23.3134507,152.85,152.84,26.0]
[1748884685360,10.7,152.87,152.85,6.54236179]
[1748884686456,34.0134507,152.87,152.85,6.54236179]
[1748884689088,23.3134507,152.86,152.84,32.54277483]
[1748884689291,23.3134507,152.85,152.84,32.54277483]
[1748884689866,10.7,152.87,152.84,32.54277483]
[1748884689867,23.3134507,152.86,152.84,32.54277483]
[1748884690594,10.7,152.87,152.84,32.54277483]
[1748884690798,23.3134507,152.86,152.84,32.54277483]
[1748884691994,34.0134507,152.87,152.84,32.54277483]
[1748884692801,10.7,152.87,152.84,48.89974944]
[1748884693167,10.7,152.87,152.84,72.21320014]
[1748884693686,4.68982017,152.91,152.89,26.0]
[1748884693918,10.68,152.92,152.89,49.3134507]
[1748884694194,10.68,152.92,152.91,23.3134507]
[1748884694365,3.74687596,152.95,152.91,23.3134507]
[1748884694570,33.9934507,152.96,152.91,23.3134507]
[1748884695180,37.73684157,152.96,152.91,23.3134507]
[1748884695401,14.42339087,152.96,152.91,23.3134507]
[1748884695566,37.73684157,152.96,152.92,6.53936698]
[1748884695773,10.68,152.96,152.93,23.3134507]
[1748884695977,5.36453889,152.96,152.95,23.3134507]
[1748884696209,5.36453889,152.96,152.94,23.3134507]
[1748884697896,5.36453889,152.96,152.95,6.53808434]
[1748884698070,23.3134507,152.99,152.95,6.53808434]
[1748884698266,89.18,153.0,152.95,55.85153504]
[1748884698579,10.68,153.0,152.98,26.0]
[1748884700083,33.9934507,153.0,152.98,26.0]
[1748884700299,10.68,153.0,152.98,32.53670382]
[1748884700536,33.9934507,153.04,152.99,23.3134507]
[1748884700801,23.3134507,153.02,152.98,32.53670382]
[1748884700994,23.3134507,153.01,152.98,32.53670382]
[1748884703207,23.3134507,153.03,152.99,23.3134507]
[1748884703503,0.14216157,153.03,152.99,26.0]
[1748884703809,23.3134507,153.01,152.99,26.0]
[1748884704503,23.3134507,153.02,152.99,26.0]
[1748884705299,23.3134507,153.0,152.94,6.53851183]
[1748884705499,23.3134507,152.95,152.93,3.4078105]
[1748884705702,23.3134507,152.95,152.93,29.4078105]
[1748884706086,0.14216157,152.98,152.94,26.0]
[1748884706287,23.3134507,152.95,152.93,3.4078105]
[1748884706479,33.9934507,152.94,152.93,3.4078105]
[1748884710405,40.95844724,152.94,152.93,3.4078105]
[1748884711684,34.41993541,152.94,152.93,3.4078105]
[1748884712422,33.9934507,152.94,152.93,3.4078105]
[1748884712631,10.68,152.94,152.93,35.94674988]
[1748884712986,33.9934507,152.94,152.93,35.94674988]
[1748884714398,10.68,152.94,152.93,35.94674988]
[1748884714893,33.9934507,152.94,152.93,35.94674988]
[1748884715780,10.68,152.98,152.93,35.94674988]
[1748884715986,10.68,152.98,152.93,59.26020058]
[1748884716195,23.3134507,152.97,152.93,59.26020058]
[1748884716401,23.3134507,152.96,152.93,35.94674988]
[1748884717912,10.68,152.98,152.97,26.0]
[1748884718110,10.66,153.02,152.97,49.3134507]
[1748884718312,10.66,153.02,152.99,26.0]
[1748884718499,33.9734507,153.02,152.99,26.0]
[1748884719188,23.3134507,153.01,152.96,49.3134507]
[1748884719592,10.66,153.02,153.0,26.0]
[1748884719895,23.3134507,153.04,153.01,26.0]
[1748884720111,23.3134507,153.02,152.98,6.2749]
[1748884720301,0.42648471,153.05,153.01,26.0]
[1748884720491,23.3134507,153.02,152.99,26.0]
[1748884720690,19.07613357,153.05,152.99,26.0]
[1748884720906,23.3134507,153.01,153.0,26.0]
[1748884721409,23.3134507,153.03,153.0,26.0]
[1748884721617,10.66,153.06,153.01,6.53552055]
[1748884721818,23.3134507,153.04,153.01,6.53552055]
[1748884722410,10.66,153.06,153.01,6.53552055]
[1748884722610,23.3134507,153.05,153.01,6.53552055]
[1748884723042,23.3134507,153.04,153.01,6.53552055]
[1748884723215,23.3134507,153.03,153.0,32.53584064]
[1748884723721,10.66,153.06,153.0,32.53584064]
[1748884723722,23.3134507,153.02,153.0,32.53584064]
[1748884723917,23.3134507,153.02,152.99,32.53627226]
[1748884725312,38.82884365,153.02,152.99,32.53627226]
[1748884725510,10.66,153.06,153.02,26.0]
[1748884725711,10.66,153.06,153.02,64.82884365]
[1748884726624,10.66,153.06,153.03,6.5346664]
[1748884726922,49.48884365,153.12,153.08,26.0]
[1748884727124,49.48884365,153.12,153.08,38.82884365]
[1748884727334,10.66,153.12,153.08,64.82884365]
[1748884727917,10.66,153.12,153.09,38.82884365]
[1748884728098,10.66,153.12,153.11,64.82884365]
[1748884728298,10.66,153.16,153.11,64.82884365]
[1748884728500,38.82884365,153.15,153.11,64.82884365]
[1748884728706,38.82884365,153.15,153.12,6.53082549]
[1748884731221,10.66,153.16,153.12,6.53082549]
[1748884731222,49.48884365,153.16,153.12,45.35966914]
[1748884731600,10.66,153.16,153.12,45.35966914]
[1748884732504,49.48884365,153.16,153.12,45.35966914]
[1748884732722,87.02413271,153.2,153.14,64.82884365]
[1748884732723,38.82884365,153.18,153.14,64.82884365]
[1748884733111,0.14216157,153.19,153.14,64.82884365]
[1748884733430,38.82884365,153.18,153.14,64.82884365]
[1748884733611,38.82884365,153.18,153.14,26.0]
[1748884733805,38.82884365,153.17,153.14,26.0]
[1748884734006,0.14216157,153.19,153.14,26.0]
[1748884734007,38.82884365,153.15,153.14,26.0]
[1748884734419,38.82884365,153.16,153.14,32.52997257]
[1748884736119,38.82884365,153.17,153.14,32.52997257]
[1748884736431,38.82884365,153.16,153.14,32.52997257]
[1748884736604,38.82884365,153.15,153.14,32.52997257]
[1748884737126,38.82884365,153.15,153.14,26.0]
[1748884737331,38.82884365,153.15,153.13,6.53023972]
[1748884738707,38.82884365,153.15,153.12,6.53082549]
[1748884739404,38.82884365,153.13,153.1,6.53127876]
[1748884739603,38.82884365,153.12,153.1,6.53127876]
[1748884739817,38.82884365,153.14,153.1,22.86047536]
[1748884740106,38.82884365,153.15,153.11,26.0]
[1748884740410,38.82884365,153.15,153.11,64.82884365]
[1748884740640,38.82884365,153.14,153.12,6.53082549]
[1748884741631,38.82884365,153.13,153.12,6.53082549]
[1748884741827,38.82884365,153.13,153.1,26.0]
[1748884742012,38.82884365,153.12,153.1,26.0]
[1748884742334,38.82884365,153.11,153.08,6.532532]
[1748884743003,0.14216157,153.15,153.08,61.69270567]
[1748884743339,51.42432314,153.16,153.08,61.69270567]
[1748884743340,49.48884365,153.16,153.11,38.82884365]
[1748884743505,49.48884365,153.16,153.12,38.82884365]
[1748884744407,49.48884365,153.16,153.11,64.82884365]
[1748884744408,38.82884365,153.15,153.11,64.82884365]
[1748884745136,10.66,153.16,153.12,22.85788923]
[1748884745137,49.48884365,153.16,153.12,22.85788923]
[1748884745581,10.66,153.16,153.12,61.68673288]
[1748884745740,38.82884365,153.15,153.12,22.85788923]
[1748884747316,10.66,153.16,153.12,22.85788923]
[1748884747317,49.48884365,153.16,153.12,22.85788923]
[1748884747517,49.48884365,153.16,153.12,61.68673288]
[1748884747718,10.66,153.16,153.12,61.68673288]
[1748884747918,49.48884365,153.16,153.12,61.68673288]
[1748884748321,10.66,153.16,153.12,61.68673288]
[1748884748921,38.82884365,153.18,153.14,38.82884365]
[1748884749355,38.82884365,153.19,153.15,22.85341168]
[1748884749559,10.64,153.2,153.15,61.68225533]
[1748884749560,49.46884365,153.2,153.15,61.68225533]
[1748884750351,49.46884365,153.2,153.16,38.82884365]
[1748884750733,49.46884365,153.2,153.15,22.85341168]
[1748884750734,49.46884365,153.2,153.15,61.68225533]
[1748884751327,38.82884365,153.16,153.15,6.52954619]
[1748884751556,38.82884365,153.17,153.15,6.52954619]
[1748884751752,38.82884365,153.18,153.15,6.52954619]
[1748884752132,38.82884365,153.19,153.15,22.85341168]
[1748884752556,38.82884365,153.19,153.15,61.68225533]
[1748884752740,38.82884365,153.19,153.15,22.85341168]
[1748884753143,10.64,153.2,153.17,38.82884365]
[1748884753343,8.03718878,153.23,153.18,6.52826739]
[1748884753554,46.86603243,153.23,153.18,45.35711104]
[1748884753765,38.82884365,153.21,153.18,22.84893588]
[1748884753968,38.82884365,153.19,153.18,6.52826739]
[1748884754857,38.82884365,153.19,153.15,95.61166847]
[1748884754858,38.82884365,153.19,153.15,32.52954619]
[1748884755036,19.07613357,153.22,153.15,32.52954619]
[1748884755228,23.25001364,153.17,153.15,32.52954619]
[1748884755427,23.25001364,153.16,153.13,32.530399]
[1748884755658,23.25001364,153.15,153.13,32.530399]
[1748884756041,23.25001364,153.15,153.13,6.530399]
[1748884756245,10.78216157,153.19,153.13,6.530399]
[1748884756246,23.25001364,153.14,153.13,6.530399]
[1748884756666,23.25001364,153.14,153.1,6.53167864]
[1748884756874,10.64,153.14,153.07,6.53295877]
[1748884757041,10.64,153.14,153.08,26.0]
[1748884757245,38.77718988,153.12,153.08,64.77718988]
[1748884757559,38.77718988,153.12,153.09,6.53210529]
[1748884757943,38.77718988,153.12,153.09,22.86236853]
[1748884758146,49.41718988,153.14,153.09,61.63955841]
[1748884758670,10.64,153.14,153.11,26.0]
[1748884758965,49.41718988,153.14,153.11,26.0]
[1748884759283,1.78886157,153.19,153.1,38.77718988]
[1748884759284,38.77718988,153.17,153.12,64.77718988]
[1748884759573,38.77718988,153.17,153.13,22.85639651]
[1748884760267,38.77718988,153.18,153.13,63.17728639]
[1748884760658,38.77718988,153.18,153.14,38.77718988]
[1748884761062,38.77718988,153.18,153.13,63.17728639]
[1748884762357,10.64,153.19,153.14,38.77718988]
[1748884762565,49.41718988,153.19,153.15,26.0]
[1748884762759,49.41718988,153.19,153.15,64.77718988]
[1748884762956,49.41718988,153.19,153.15,26.0]
[1748884763155,38.77718988,153.18,153.15,26.0]
[1748884763745,49.41718988,153.19,153.15,26.0]
[1748884764256,49.41718988,153.19,153.16,6.52911987]
[1748884764475,49.41718988,153.19,153.16,22.85191955]
[1748884765162,38.77718988,153.18,153.16,22.85191955]
[1748884765482,38.77718988,153.17,153.16,6.52911987]
[1748884766379,38.77718988,153.17,153.1,6.53167864]
[1748884766555,38.77718988,153.13,153.12,26.0]
[1748884766756,38.77718988,153.14,153.12,26.0]
[1748884767880,30.0,153.16,153.12,26.0]
[1748884768063,38.77718988,153.14,153.12,26.0]
[1748884768386,38.77718988,153.14,153.13,6.530399]
[1748884770372,38.77718988,153.15,153.13,6.530399]
[1748884771473,68.77718988,153.16,153.13,22.85639651]
[1748884771992,38.77718988,153.15,153.13,22.85639651]
[1748884772549,30.0,153.16,153.13,6.530399]
[1748884773282,0.14216157,153.18,153.13,6.530399]
[1748884773460,38.77718988,153.16,153.13,22.85639651]
[1748884774381,10.64,153.19,153.15,38.77718988]
[1748884774382,3.74698902,153.18,153.15,38.77718988]
[1748884774688,49.41718988,153.19,153.16,6.52911987]
[1748884774859,38.77718988,153.17,153.16,6.52911987]
[1748884775391,3.74671437,153.18,153.16,6.52911987]
[1748884775557,49.41718988,153.19,153.16,6.52911987]
[1748884775881,38.77718988,153.18,153.16,6.52911987]
[1748884776480,38.77718988,153.18,153.15,22.85341168]
[1748884776879,10.64,153.19,153.15,61.63060156]
[1748884777367,10.64,153.19,153.16,38.77718988]
[1748884777570,38.77718988,153.2,153.16,38.77718988]
[1748884777763,38.77718988,153.2,153.15,63.21220156]
[1748884778366,38.77718988,153.2,153.15,24.43501168]
[1748884778566,38.77718988,153.2,153.16,38.77718988]
[1748884778768,3.74512716,153.22,153.16,38.77718988]
[1748884778973,38.77718988,153.2,153.16,38.77718988]
[1748884779481,38.77718988,153.21,153.16,38.77718988]
[1748884779681,18.67718878,153.23,153.18,38.77718988]
[1748884779885,57.45437866,153.23,153.18,38.77718988]
[1748884780483,38.77718988,153.22,153.18,38.77718988]
[1748884780670,38.77718988,153.22,153.15,97.54274266]
[1748884780671,10.64,153.23,153.21,38.77718988]
[1748884781071,89.0,153.27,153.21,38.77718988]
[1748884781589,38.77718988,153.25,153.21,38.77718988]
[1748884781788,89.0,153.27,153.21,38.77718988]
[1748884782086,38.77718988,153.26,153.21,38.77718988]
[1748884782670,38.77718988,153.26,153.22,6.52656311]
[1748884782984,89.0,153.27,153.23,38.77718988]
[1748884784088,10.64,153.27,153.23,38.77718988]
[1748884784292,49.41718988,153.27,153.23,38.77718988]
[1748884784467,49.41718988,153.27,153.22,87.62016076]
[1748884784668,38.77718988,153.26,153.22,48.84297088]
[1748884784979,38.77718988,153.25,153.22,48.84297088]
[1748884785704,38.77718988,153.23,153.22,26.0]
[1748884785864,38.77718988,153.23,153.19,16.31856486]
[1748884785865,38.77718988,153.23,153.21,6.52683902]
[1748884786064,38.77718988,153.22,153.21,6.52683902]
[1748884786261,38.77718988,153.23,153.21,6.52683902]
[1748884786689,38.77718988,153.23,153.2,6.52741514]
[1748884786869,0.28432314,153.26,153.2,6.52741514]
[1748884787065,38.77718988,153.23,153.2,6.52741514]
[1748884787272,0.28432314,153.26,153.2,6.52741514]
[1748884787273,38.77718988,153.22,153.2,6.52741514]
[1748884787867,38.77718988,153.23,153.2,6.52741514]
[1748884788293,38.77718988,153.24,153.2,61.62314287]
[1748884788495,38.77718988,153.25,153.2,61.62314287]
[1748884789187,38.77718988,153.24,153.2,61.62314287]
[1748884789382,38.77718988,153.25,153.21,38.77718988]
[1748884789977,10.64,153.27,153.21,38.77718988]
[1748884790174,38.77718988,153.25,153.21,38.77718988]
[1748884790565,38.77718988,153.26,153.22,64.77718988]
[1748884790798,38.77718988,153.25,153.23,6.52613717]
[1748884791011,10.64,153.27,153.23,6.52613717]
[1748884791497,38.77718988,153.25,153.23,6.52613717]
[1748884792085,38.77718988,153.26,153.23,6.52613717]
[1748884792496,38.77718988,153.25,153.23,6.52613717]
[1748884792801,38.77718988,153.24,153.23,6.52613717]
[1748884793208,10.64,153.27,153.23,6.52613717]
[1748884793209,38.77718988,153.26,153.23,6.52613717]
[1748884793727,49.41718988,153.27,153.23,22.84148011]
[1748884794008,49.41718988,153.27,153.23,61.61866999]
[1748884794311,38.77718988,153.28,153.23,61.61866999]
[1748884794520,38.77718988,153.29,153.24,38.77718988]
[1748884795019,27.85584506,153.3,153.27,26.0]
[1748884795184,38.77718988,153.29,153.27,26.0]
[1748884796005,27.85584506,153.3,153.27,26.0]
[1748884796311,38.77718988,153.29,153.27,26.0]
[1748884796918,38.77718988,153.29,153.28,6.52400835]
[1748884797088,38.77718988,153.29,153.27,6.52425861]
[1748884797295,38.77718988,153.28,153.27,6.52425861]
[1748884797914,38.77718988,153.29,153.27,6.52425861]
[1748884798295,38.77718988,153.28,153.25,22.8381822]
[1748884800296,38.77718988,153.26,153.25,6.52528548]
[1748884800505,38.77718988,153.26,153.25,32.52528548]
[1748884801302,23.2228413,153.26,153.25,32.52528548]
[1748884802015,23.2228413,153.27,153.25,32.52528548]
[1748884803195,23.2228413,153.28,153.25,48.83849918]
[1748884803797,26.82435994,153.34,153.25,48.83849918]
[1748884803798,5.54246568,153.35,153.28,26.0]
[1748884804004,11.5297979,153.35,153.28,49.2228413]
[1748884804205,11.5297979,153.35,153.26,40.42]
[1748884804206,23.2228413,153.32,153.29,26.0]
[1748884804406,23.2228413,153.33,153.3,6.5231572]
[1748884804610,11.5297979,153.35,153.3,6.5231572]
[1748884804803,23.2228413,153.33,153.3,6.5231572]
[1748884804995,23.2228413,153.34,153.3,46.05389152]
[1748884805214,50.19307685,153.35,153.3,61.49432917]
[1748884805926,50.19307685,153.35,153.31,38.66327895]
[1748884806236,11.5297979,153.35,153.31,38.66327895]
[1748884806534,0.8897979,153.35,153.34,26.0]
[1748884809025,0.8897979,153.35,153.34,32.52145558]
[1748884809425,0.8897979,153.35,153.34,71.18473453]
[1748884811503,0.8897979,153.35,153.34,32.52145558]
[1748884811803,0.8897979,153.35,153.34,71.18473453]
[1748884815501,0.8897979,153.35,153.34,32.52145558]
[1748884815701,1.2818979,153.35,153.34,32.52145558]
[1748884816508,1.2818979,153.35,153.34,71.18473453]
[1748884817830,1.2818979,153.35,153.34,89.83438339]
[1748884818139,1.2818979,153.35,153.34,51.31326601]
[1748884818303,1.2818979,153.35,153.34,89.97654496]
[1748884818702,1.2818979,153.35,153.34,95.26527473]
[1748884818919,1.2818979,153.35,153.34,91.9261681]
[1748884819835,1.2818979,153.35,153.34,97.2528696]
[1748884820611,1.2818979,153.35,153.34,137.6528696]
[1748884821010,1.2818979,153.35,153.34,34.18675558]
[1748884821210,1.2818979,153.35,153.34,72.85003453]
[1748884821520,39.94517685,153.35,153.33,6.521763]
[1748884821718,38.66327895,153.34,153.3,6.5231572]
[1748884821939,38.66327895,153.32,153.3,32.5231572]
[1748884822106,38.66327895,153.34,153.3,48.83105022]
[1748884822305,38.66327895,153.34,153.3,32.5231572]
[1748884822518,38.66327895,153.33,153.3,32.5231572]
[1748884822738,11.9018979,153.35,153.3,71.18643615]
[1748884822739,38.66327895,153.34,153.3,71.18643615]
[1748884823247,38.66327895,153.32,153.3,32.5231572]
[1748884823446,38.66327895,153.31,153.29,6.52346449]
[1748884823613,38.66327895,153.32,153.27,38.66327895]
[1748884823817,1.5219,153.34,153.28,64.66327895]
[1748884823818,38.66327895,153.33,153.28,64.66327895]
[1748884824121,38.66327895,153.32,153.28,64.66327895]
[1748884824327,38.66327895,153.32,153.28,26.0]
[1748884824846,38.66327895,153.32,153.28,6.52400835]
[1748884825042,38.66327895,153.33,153.29,38.66327895]
[1748884825334,38.66327895,153.34,153.29,38.66327895]
[1748884825917,11.9018979,153.35,153.29,38.66327895]
[1748884826118,38.66327895,153.33,153.31,26.0]
[1748884827211,38.66327895,153.32,153.3,6.52301382]
[1748884827416,38.66327895,153.31,153.3,26.0]
[1748884827615,38.66327895,153.31,153.29,6.52345361]
[1748884827823,38.66327895,153.3,153.29,6.52345361]
[1748884828028,38.66327895,153.31,153.29,6.52345361]
[1748884828717,38.66327895,153.33,153.29,45.18673256]
[1748884829039,38.66327895,153.31,153.29,6.52345361]
[1748884829214,38.66327895,153.32,153.29,6.52345361]
[1748884830048,38.66327895,153.33,153.29,6.52345361]
[1748884830733,38.66327895,153.32,153.29,6.52345361]
[1748884831241,38.66327895,153.3,153.29,6.52345361]
[1748884831416,38.66327895,153.3,153.28,26.0]
[1748884831417,38.66327895,153.3,153.25,6.52528548]
[1748884831617,38.66327895,153.29,153.25,6.52528548]
[1748884831835,38.66327895,153.29,153.26,26.0]
[1748884832034,38.66327895,153.31,153.26,38.66327895]
[1748884832240,38.66327895,153.31,153.27,26.0]
[1748884832746,38.66327895,153.33,153.29,38.66327895]
[1748884832914,38.66327895,153.33,153.3,6.5231572]
[1748884833318,38.66327895,153.34,153.31,26.0]
[1748884835040,38.66327895,153.34,153.32,6.52230628]
[1748884836316,38.66327895,153.34,153.32,22.82807199]
[1748884837822,39.55307685,153.35,153.32,22.82807199]
[1748884838212,39.55307685,153.35,153.34,26.0]
[1748884838213,0.8897979,153.35,153.34,26.0]
[1748884838533,0.8897979,153.35,153.34,64.66327895]
[1748884838534,0.3897979,153.35,153.34,64.66327895]
[1748884839823,0.3897979,153.35,153.34,71.18473453]
[1748884842727,0.3897979,153.35,153.34,91.7760681]
[1748884843033,0.3897979,153.35,153.34,97.8185681]
[1748884843545,10.74,153.45,153.38,26.0]
[1748884843751,10.74,153.45,153.42,38.66327895]
[1748884843933,10.74,153.45,153.41,38.66327895]
[1748884844132,10.74,153.45,153.42,6.51805501]
[1748884845236,49.40327895,153.45,153.42,6.51805501]
[1748884845446,116.94327895,153.47,153.43,38.66327895]
[1748884845838,27.50724299,153.48,153.43,38.66327895]
[1748884846053,38.66327895,153.47,153.44,6.51720542]
[1748884847758,38.66327895,153.45,153.44,6.51720542]
[1748884848055,38.66327895,153.45,153.37,32.59883296]
[1748884848056,0.14216157,153.44,153.37,6.52017995]
[1748884848256,38.66327895,153.4,153.39,26.0]
[1748884848754,10.88216157,153.44,153.39,26.0]
[1748884848755,38.66327895,153.41,153.39,26.0]
[1748884849051,38.66327895,153.42,153.39,26.0]
[1748884849754,10.88216157,153.44,153.37,61.48390879]
[1748884849755,38.66327895,153.41,153.37,48.82062984]
[1748884849930,38.66327895,153.4,153.37,48.82062984]
[1748884850127,38.66327895,153.38,153.37,6.52017995]
[1748884850469,8.1918,153.43,153.37,38.66327895]
[1748884850755,0.3921,153.4,153.37,38.66327895]
[1748884852360,0.3921,153.4,153.36,61.4853048]
[1748884852361,39.05537895,153.4,153.36,61.4853048]
[1748884853071,0.3921,153.4,153.36,61.4853048]
[1748884853361,0.3921,153.4,153.37,38.66327895]
[1748884854141,0.3921,153.4,153.36,61.4853048]
[1748884854859,0.3921,153.4,153.37,38.66327895]
[1748884855352,39.05537895,153.4,153.36,61.4853048]
[1748884855728,0.3921,153.4,153.36,61.4853048]
[1748884855929,39.05537895,153.4,153.36,61.4853048]
[1748884856963,38.66327895,153.39,153.38,26.0]
[1748884857331,23.18177286,153.39,153.38,26.0]
[1748884857544,23.18177286,153.39,153.38,32.51975485]
[1748884859943,23.57387286,153.4,153.38,32.51975485]
[1748884860354,0.3921,153.4,153.38,32.51975485]
[1748884861762,0.3921,153.4,153.39,23.18177286]
[1748884862135,0.3921,153.4,153.39,29.70110267]
[1748884863070,0.3921,153.4,153.39,6.51932981]
[1748884863464,0.3921,153.4,153.39,29.70110267]
[1748884863638,0.3921,153.4,153.39,32.51932981]
[1748884867241,0.3921,153.4,153.39,31.23880267]
[1748884867548,0.3921,153.4,153.39,46.66134495]
[1748884868264,0.3921,153.4,153.39,6.51932981]
[1748884868436,0.3921,153.4,153.38,6.51975485]
[1748884869970,0.3921,153.4,153.38,45.12406999]
[1748884870455,0.3921,153.4,153.38,6.51975485]
[1748884870650,38.99641514,153.4,153.38,6.51975485]